bitfinex/quotes_BTCUSD_20260315
["timestamp","ask_amount","ask_price","bid_price","bid_amount"]
[1773617670185,0.0014,72467.0,72456.0,0.0014]
[1773617671103,0.07039697,72467.0,72456.0,0.0014]
[1773617671532,0.06899697,72467.0,72456.0,0.0014]
[1773617671876,0.06899697,72467.0,72457.0,0.06900644]
[1773617672082,0.0002,72469.0,72457.0,0.06900644]
[1773617672307,0.0002,72469.0,72458.0,0.1905576]
[1773617672615,0.0002,72472.0,72458.0,0.1905576]
[1773617672725,0.0002,72489.0,72458.0,0.1905576]
[1773617672726,0.0014,72485.0,72458.0,0.1905576]
[1773617672899,0.07038001,72485.0,72458.0,0.1905576]
[1773617673325,0.069181,72484.0,72458.0,0.1905576]
[1773617674092,0.069181,72484.0,72459.0,0.06900454]
[1773617674294,0.069181,72484.0,72460.0,0.1905576]
[1773617674478,0.0002,72484.0,72460.0,0.1905576]
[1773617674674,0.06918105,72484.0,72460.0,0.1905576]
[1773617674970,0.06940905,72484.0,72460.0,0.1905576]
[1773617675777,0.13778025,72487.0,72460.0,0.1905576]
[1773617675937,0.0002,72489.0,72462.0,0.1905576]
[1773617676140,0.00025,72493.0,72470.0,0.17125855]
[1773617676141,1e-08,72493.0,72470.0,0.17125855]
[1773617676341,1e-08,72493.0,72471.0,0.1919576]
[1773617676542,1e-08,72493.0,72473.0,0.1905576]
[1773617676745,1e-08,72493.0,72474.0,0.1919576]
[1773617676931,1e-08,72493.0,72476.0,0.1905576]
[1773617677140,1e-08,72493.0,72475.0,0.0014]
[1773617677141,1e-08,72493.0,72477.0,0.1919576]
[1773617677337,1e-08,72493.0,72478.0,0.1919576]
[1773617677552,0.0002,72497.0,72480.0,0.1905576]
[1773617677747,0.06896857,72497.0,72480.0,0.1905576]
[1773617677993,1e-08,72497.0,72480.0,0.1905576]
[1773617678169,1e-08,72497.0,72482.0,0.1905576]
[1773617680715,1e-08,72497.0,72483.0,0.07038169]
[1773617681398,0.0014,72496.0,72483.0,0.06898169]
[1773617681567,0.19056602,72496.0,72483.0,0.06898169]
[1773617682074,0.0014,72496.0,72481.0,0.25954119]
[1773617682220,1e-08,72497.0,72481.0,0.25954119]
[1773617682221,1e-08,72497.0,72482.0,0.0014]
[1773617682824,1e-08,72497.0,72483.0,0.06898169]
[1773617683021,1e-08,72497.0,72484.0,0.1905576]
[1773617683307,1e-08,72497.0,72483.0,0.06898169]
[1773617683535,0.18916603,72497.0,72483.0,0.06898169]
[1773617684570,0.18916603,72497.0,72479.0,0.06898491]
[1773617684773,0.18916603,72497.0,72480.0,0.06898454]
[1773617685180,0.25813534,72496.0,72478.0,0.06909097]
[1773617685383,0.18916602,72495.0,72478.0,0.07049097]
[1773617687051,0.06897122,72494.0,72478.0,0.07049097]
[1773617687257,0.07037122,72494.0,72479.0,0.1905576]
[1773617687462,0.07037122,72494.0,72478.0,0.07049097]
[1773617687696,0.18916602,72493.0,72478.0,0.07049097]
[1773617689555,0.07037122,72494.0,72478.0,0.07049097]
[1773617689761,0.07037147,72494.0,72479.0,0.1905576]
[1773617689983,0.0002,72496.0,72479.0,0.1905576]
[1773617690186,1e-08,72497.0,72479.0,0.1905576]
[1773617691028,0.06931358,72502.0,72479.0,0.1905576]
[1773617691029,0.0003498,72502.0,72479.0,0.1905576]
[1773617691228,0.0002,72504.0,72480.0,0.17126035]
[1773617691468,0.06900348,72513.0,72478.0,0.07049097]
[1773617691469,0.23569033,72531.0,72492.0,0.1905576]
[1773617691653,0.06914108,72526.0,72494.0,0.1905576]
[1773617691850,0.06914108,72526.0,72495.0,0.00874803]
[1773617692051,0.0002,72526.0,72495.0,0.00874803]
[1773617692269,0.18921818,72522.0,72496.0,0.0014]
[1773617692484,0.18921818,72522.0,72497.0,0.00955069]
[1773617692660,0.18921818,72522.0,72491.0,0.0616715]
[1773617692862,0.18921818,72522.0,72492.0,0.0014]
[1773617693610,0.18921818,72520.0,72493.0,0.06897217]
[1773617694691,0.18921818,72520.0,72494.0,0.01032346]
[1773617695246,0.18921818,72520.0,72495.0,0.0014]
[1773617695686,0.18921818,72518.0,72496.0,0.06896932]
[1773617695891,0.18921818,72518.0,72497.0,0.0014]
[1773617696119,0.18921818,72518.0,72496.0,0.06896932]
[1773617696298,0.18921818,72518.0,72498.0,0.0014]
[1773617696608,0.18921818,72518.0,72496.0,0.06896932]
[1773617698210,0.18921818,72518.0,72486.0,0.00953982]
[1773617698211,0.18921818,72516.0,72484.0,0.0014]
[1773617699294,0.18921818,72516.0,72484.0,0.01044344]
[1773617700952,0.06895125,72515.0,72485.0,0.06897978]
[1773617701153,0.18921818,72514.0,72483.0,0.0014]
[1773617701381,0.18921818,72514.0,72484.0,0.0014]
[1773617701592,0.18921818,72514.0,72480.0,0.06898364]
[1773617701806,0.18921818,72514.0,72482.0,0.0014]
[1773617701938,0.06895125,72515.0,72478.0,0.06909097]
[1773617701939,0.18921818,72508.0,72478.0,0.07049216]
[1773617702144,0.18921818,72506.0,72478.0,0.07049216]
[1773617702879,0.32931104,72509.0,72478.0,0.07049216]
[1773617703077,0.18921818,72506.0,72478.0,0.07049216]
[1773617703738,0.18921818,72504.0,72478.0,0.07071216]
[1773617703941,0.06895125,72515.0,72479.0,1.157274]
[1773617704182,0.18921818,72514.0,72481.0,0.00781315]
[1773617705202,0.06895315,72513.0,72483.0,0.0075689]
[1773617705352,0.18921818,72514.0,72484.0,0.0014]
[1773617705560,0.0002,72516.0,72484.0,0.0014]
[1773617706267,0.0002,72516.0,72485.0,0.00047108]
[1773617706911,0.0002,72516.0,72486.0,0.0014]
[1773617707158,0.0002,72516.0,72487.0,0.06897788]
[1773617707517,0.0691504,72516.0,72487.0,0.06897788]
[1773617708283,0.0002,72516.0,72488.0,0.00054155]
[1773617708823,0.19323817,72514.0,72487.0,0.06897788]
[1773617709033,0.19323817,72514.0,72488.0,0.0014]
[1773617709214,0.26218966,72515.0,72489.0,0.06897598]
[1773617709414,0.19323817,72514.0,72489.0,0.06897598]
[1773617710322,0.19323817,72514.0,72489.0,0.06997598]
[1773617710811,0.19323817,72514.0,72489.0,0.07002556]
[1773617711028,0.0002,72516.0,72490.0,1.44645635]
[1773617711241,0.06914492,72522.0,72494.0,4.958e-05]
[1773617711442,0.0002,72522.0,72495.0,0.0014]
[1773617711900,0.06914467,72522.0,72496.0,0.14971829]
[1773617712225,0.0002,72522.0,72496.0,0.14971829]
[1773617712404,0.06914117,72526.0,72501.0,0.553099]
[1773617712405,1e-08,72526.0,72501.0,0.553099]
[1773617712654,0.06892074,72548.0,72511.0,0.1494784]
[1773617712862,0.06892074,72548.0,72510.0,0.17126035]
[1773617712863,0.24481509,72552.0,72530.0,0.17126035]
[1773617713067,0.0003,72552.0,72531.0,0.1508784]
[1773617713268,0.06921672,72552.0,72532.0,0.07033509]
[1773617713692,0.06957265,72552.0,72532.0,0.07033509]
[1773617715363,1e-08,72552.0,72533.0,0.14877487]
[1773617715750,0.0002,72561.0,72535.0,0.14877487]
[1773617715946,0.00035672,72559.0,72535.0,0.14877487]
[1773617716376,0.01,72565.0,72541.0,0.14854109]
[1773617716589,0.01,72565.0,72542.0,0.0014]
[1773617716795,0.01,72565.0,72543.0,0.14854109]
[1773617717212,0.01,72565.0,72544.0,0.06892368]
[1773617717424,0.01,72565.0,72544.0,0.21723521]
[1773617717635,0.01,72565.0,72545.0,0.14831153]
[1773617717843,0.0691002,72569.0,72551.0,0.14831153]
[1773617717844,0.0002,72569.0,72551.0,0.14831153]
[1773617718050,0.0002,72574.0,72550.0,0.17126035]
[1773617718051,0.0002,72574.0,72552.0,0.14971153]
[1773617718668,1e-08,72574.0,72552.0,0.14971153]
[1773617719265,1e-08,72574.0,72553.0,0.06891513]
[1773617719468,1e-08,72574.0,72554.0,0.14792617]
[1773617719871,1.001e-05,72581.0,72554.0,0.14792617]
[1773617720279,0.06888694,72583.0,72554.0,0.14792617]
[1773617720484,0.17559826,72584.0,72554.0,0.14792617]
[1773617720871,0.06888598,72584.0,72554.0,0.14792617]
[1773617721087,0.17559826,72583.0,72555.0,0.0014]
[1773617721300,0.17559826,72581.0,72556.0,0.06891228]
[1773617721704,0.17559826,72581.0,72557.0,0.0014]
[1773617724710,0.183698,72579.0,72558.0,0.06891038]
[1773617724918,0.06888088,72590.0,72558.0,0.06891038]
[1773617724919,0.06892448,72596.0,72571.0,0.33303903]
[1773617725051,0.06892448,72596.0,72572.0,0.0014]
[1773617725052,0.06887661,72594.0,72572.0,0.0014]
[1773617725252,0.183698,72591.0,72572.0,0.0014]
[1773617725675,0.183698,72591.0,72573.0,0.0014]
[1773617726084,0.18380458,72591.0,72573.0,0.0014]
[1773617726948,0.06888001,72590.0,72574.0,0.06889519]
[1773617727153,0.0002,72581.0,72574.0,0.06889519]
[1773617728409,0.0002,72581.0,72575.0,0.0014]
[1773617728745,0.00016,72589.0,72575.0,0.0014]
[1773617729554,0.04404001,72590.0,72576.0,0.06889329]
[1773617730605,1e-08,72592.0,72576.0,0.06889329]
[1773617730773,1e-08,72597.0,72581.0,0.14557236]
[1773617730971,1e-08,72597.0,72580.0,0.17126035]
[1773617731189,1e-08,72597.0,72582.0,0.0014]
[1773617731608,1e-08,72597.0,72583.0,0.06888665]
[1773617731831,1e-08,72597.0,72584.0,0.0014]
[1773617731832,0.183698,72596.0,72584.0,0.0014]
[1773617732036,1e-08,72597.0,72584.0,0.0014]
[1773617733292,0.183698,72596.0,72584.0,0.0014]
[1773617733759,0.183698,72596.0,72585.0,0.06888475]
[1773617734085,0.25257253,72596.0,72585.0,0.06888475]
[1773617734315,0.06887453,72596.0,72585.0,0.06888475]
[1773617734515,0.0002,72591.0,72583.0,0.06888665]
[1773617734724,0.183898,72591.0,72586.0,0.0014]
[1773617735305,0.0002,72591.0,72586.0,0.0014]
[1773617735524,1e-08,72597.0,72586.0,0.0014]
[1773617735852,0.06887348,72597.0,72586.0,0.0014]
[1773617736055,0.06887348,72597.0,72587.0,0.06888285]
[1773617736232,0.25257148,72597.0,72587.0,0.06888285]
[1773617736446,0.06887348,72597.0,72587.0,0.06888285]
[1773617736810,1e-08,72597.0,72587.0,0.06888285]
[1773617736986,0.06926603,72608.0,72588.0,0.14433504]
[1773617737126,0.0690653,72606.0,72588.0,0.14433504]
[1773617737328,0.0690653,72606.0,72578.0,1.475722]
[1773617737329,0.183698,72605.0,72578.0,1.475722]
[1773617737581,0.183698,72605.0,72580.0,1.46534]
[1773617737781,0.183698,72605.0,72581.0,0.0014]
[1773617738190,0.183698,72603.0,72582.0,0.0702876]
[1773617739698,0.183698,72603.0,72583.0,0.0014]
[1773617741543,0.183698,72601.0,72584.0,0.0014]
[1773617741687,0.185098,72601.0,72576.0,0.06899978]
[1773617741912,0.185098,72601.0,72577.0,0.0014]
[1773617742122,0.185098,72601.0,72559.0,0.06890851]
[1773617742123,0.14957594,72599.0,72559.0,0.06890851]
[1773617742341,0.183698,72598.0,72560.0,0.01204955]
[1773617742661,0.183698,72598.0,72561.0,0.0014]
[1773617743537,0.183698,72596.0,72562.0,0.06890659]
[1773617743712,0.183698,72594.0,72562.0,0.06890659]
[1773617744863,0.183698,72594.0,72563.0,0.0014]
[1773617745209,0.183698,72594.0,72564.0,0.0014]
[1773617745848,0.06887716,72593.0,72565.0,0.06890374]
[1773617746189,0.183698,72592.0,72565.0,0.06890374]
[1773617747336,0.163698,72592.0,72565.0,0.06890374]
[1773617747553,0.183698,72589.0,72560.0,0.01064955]
[1773617747914,0.183698,72587.0,72560.0,0.07030792]
[1773617748457,0.183698,72585.0,72561.0,0.0014]
[1773617748628,0.183698,72585.0,72565.0,0.001]
[1773617748867,0.183698,72585.0,72559.0,0.06890848]
[1773617749042,0.183698,72585.0,72561.0,0.0014]
[1773617749687,0.183698,72587.0,72559.0,0.06890848]
[1773617750023,0.183698,72587.0,72557.0,0.06891113]
[1773617750024,0.183698,72585.0,72557.0,0.06891113]
[1773617750174,0.183698,72585.0,72558.0,0.0014]
[1773617750378,0.183698,72585.0,72559.0,0.0014]
[1773617750602,0.183698,72585.0,72556.0,0.00022]
[1773617750834,0.183698,72585.0,72556.0,0.06913213]
[1773617751535,0.183698,72585.0,72556.0,0.00022]
[1773617752001,0.0688857,72584.0,72556.0,0.06913179]
[1773617752209,0.17398794,72583.0,72556.0,0.00022]
[1773617753396,0.0688857,72584.0,72552.0,0.00027]
[1773617753397,0.18469057,72579.0,72552.0,0.00027]
[1773617753595,0.18469057,72577.0,72553.0,0.0014]
[1773617754309,0.18469057,72575.0,72553.0,0.0014]
[1773617755669,0.18469057,72575.0,72552.0,0.00027]
[1773617755866,0.18469057,72575.0,72552.0,0.06918576]
[1773617756273,0.18469057,72573.0,72552.0,0.06918576]
[1773617756863,0.18469057,72573.0,72556.0,0.00022]
[1773617757116,0.06889519,72574.0,72556.0,0.00022]
[1773617758353,0.06889519,72574.0,72557.0,0.07031133]
[1773617758560,0.18469057,72573.0,72557.0,0.07031133]
[1773617760856,0.06889709,72572.0,72557.0,0.07031133]
[1773617762040,0.06889709,72572.0,72557.0,0.06891133]
[1773617762253,0.18469057,72571.0,72556.0,0.00022]
[1773617762777,0.18469057,72571.0,72547.0,0.20538786]
[1773617762778,0.38030236,72569.0,72545.0,5e-05]
[1773617762981,0.18469057,72568.0,72541.0,0.00022]
[1773617763282,0.18469057,72568.0,72541.0,0.00162]
[1773617763283,0.18469057,72566.0,72541.0,0.00162]
[1773617763686,0.18469057,72564.0,72541.0,0.24725242]
[1773617763895,0.18469057,72564.0,72543.0,0.17670658]
[1773617764233,0.00010647,72568.0,72543.0,0.17670658]
[1773617764689,0.18469057,72566.0,72543.0,0.17670658]
[1773617764986,0.18469057,72564.0,72544.0,0.0014]
[1773617765161,0.06890374,72565.0,72541.0,0.00022]
[1773617765162,0.18469057,72562.0,72541.0,0.00022]
[1773617765362,0.18469057,72562.0,72542.0,0.0014]
[1773617765567,0.06890374,72565.0,72544.0,0.17670658]
[1773617766847,0.00010647,72568.0,72546.0,0.17670658]
[1773617767277,0.18469057,72567.0,72546.0,0.17670658]
[1773617768484,0.18469057,72567.0,72545.0,0.06892273]
[1773617768661,0.18469057,72566.0,72544.0,0.06892312]
[1773617768875,0.18469057,72564.0,72544.0,0.06892312]
[1773617769124,0.06890374,72565.0,72544.0,0.06892312]
[1773617769273,0.06890374,72566.0,72546.0,0.17670658]
[1773617769607,0.06900779,72568.0,72547.0,0.0014]
[1773617769752,0.18469057,72566.0,72547.0,0.0014]
[1773617769960,0.18469057,72566.0,72544.0,0.06892312]
[1773617770308,0.18469057,72566.0,72545.0,0.0014]
[1773617770809,0.18469057,72566.0,72546.0,0.0014]
[1773617771376,0.18469057,72566.0,72535.0,1e-08]
[1773617771377,0.18469057,72555.0,72535.0,1e-08]
[1773617771575,0.18469057,72555.0,72519.0,0.30635579]
[1773617771576,0.18469057,72544.0,72513.0,0.0014]
[1773617771775,0.0014,72543.0,72510.0,5e-05]
[1773617772061,0.18469057,72540.0,72510.0,0.06895557]
[1773617772451,0.0014,72539.0,72512.0,0.17670658]
[1773617772651,0.32740923,72541.0,72510.0,0.06895557]
[1773617772652,0.18609057,72538.0,72510.0,0.06895557]
[1773617773053,0.18469057,72538.0,72510.0,0.06895557]
[1773617773257,0.00010641,72539.0,72510.0,0.06895557]
[1773617773258,0.18469057,72536.0,72510.0,0.06895557]
[1773617773434,0.17088535,72530.0,72508.0,5e-05]
[1773617773638,0.18609057,72529.0,72505.0,0.03879892]
[1773617773842,0.18609057,72529.0,72506.0,0.06895885]
[1773617774015,0.18609057,72529.0,72506.0,0.07035885]
[1773617774211,0.18609057,72529.0,72506.0,0.07025885]
[1773617774813,0.2536228,72535.0,72507.0,0.17670658]
[1773617775097,0.0014,72534.0,72507.0,0.17670658]
[1773617775392,0.06893509,72532.0,72509.0,0.06895695]
[1773617775606,0.18469057,72531.0,72509.0,0.06895695]
[1773617777225,0.18469057,72529.0,72505.0,0.06896068]
[1773617777381,0.18469057,72529.0,72507.0,0.0014]
[1773617777748,0.18469057,72529.0,72505.0,0.06896068]
[1773617777749,0.18469057,72527.0,72506.0,0.0014]
[1773617777926,0.18469057,72525.0,72506.0,0.0014]
[1773617778104,0.18469057,72525.0,72498.0,0.0014]
[1773617778504,0.0014,72527.0,72503.0,0.17670658]
[1773617778678,0.06893889,72528.0,72503.0,0.17670658]
[1773617779479,0.18469057,72534.0,72505.0,0.17670658]
[1773617779480,0.0014,72534.0,72505.0,0.17670658]
[1773617779709,0.0014,72534.0,72507.0,0.17670658]
[1773617780709,0.06892794,72540.0,72507.0,0.17670658]
[1773617781302,0.18469057,72538.0,72508.0,0.0014]
[1773617781521,0.18469057,72538.0,72509.0,0.17670658]
[1773617782044,0.06891472,72554.0,72521.0,0.18550317]
[1773617782250,0.06901664,72552.0,72523.0,0.18550317]
[1773617782464,0.06901652,72552.0,72523.0,0.18550317]
[1773617782714,0.0001,72552.0,72523.0,0.18550317]
[1773617783276,0.06901668,72552.0,72523.0,0.18550317]
[1773617783461,0.06901637,72552.0,72523.0,0.18550317]
[1773617783661,0.0002,72542.0,72523.0,0.18550317]
[1773617783808,0.0002,72542.0,72524.0,0.0014]
[1773617784149,0.0002,72549.0,72526.0,0.18550317]
[1773617786647,0.0002,72549.0,72528.0,0.18550317]
[1773617786950,0.0002,72549.0,72527.0,0.06893984]
[1773617786951,0.06891988,72548.0,72527.0,0.06893984]
[1773617787216,0.06891988,72548.0,72527.0,0.07033984]
[1773617787628,0.06891988,72548.0,72527.0,0.06893984]
[1773617787801,0.06891988,72548.0,72528.0,0.0014]
[1773617788159,0.06891988,72548.0,72527.0,0.06893984]
[1773617788614,0.06892178,72546.0,72525.0,0.06894174]
[1773617788780,0.18364598,72545.0,72524.0,0.07033984]
[1773617788990,0.18364598,72545.0,72524.0,0.07029984]
[1773617789211,0.18364598,72543.0,72522.0,0.06894459]
[1773617789941,0.0014,72542.0,72522.0,0.06894459]
[1773617790073,0.18504598,72542.0,72522.0,0.06894459]
[1773617790925,0.06892653,72541.0,72522.0,0.06894459]
[1773617791118,0.18364598,72540.0,72522.0,0.06894459]
[1773617791443,0.18364598,72538.0,72521.0,0.00035593]
[1773617791581,0.18364598,72538.0,72516.0,0.06894952]
[1773617791776,0.18400119,72538.0,72517.0,0.06894911]
[1773617793035,0.25257631,72537.0,72511.0,0.18550317]
[1773617793213,0.25257631,72537.0,72517.0,0.001]
[1773617794320,0.18364598,72536.0,72517.0,0.001]
[1773617794506,0.18364598,72534.0,72508.0,0.0689579]
[1773617794939,0.18364598,72534.0,72517.0,0.001]
[1773617795156,0.06893414,72533.0,72517.0,0.001]
[1773617795390,0.18364598,72532.0,72515.0,0.06895095]
[1773617796596,0.18364598,72532.0,72514.0,0.06895144]
[1773617796762,0.06893414,72533.0,72514.0,0.06895144]
[1773617796968,0.0002,72549.0,72515.0,0.18550317]
[1773617796969,0.06928525,72538.0,72515.0,0.18550317]
[1773617797179,0.0692848,72538.0,72517.0,0.18550317]
[1773617797371,0.0014,72537.0,72517.0,0.18550317]
[1773617797903,0.0692848,72538.0,72517.0,0.18550317]
[1773617798192,0.0014,72536.0,72517.0,0.18550317]
[1773617798763,0.00035521,72538.0,72517.0,0.18550317]
[1773617799165,0.00035521,72538.0,72518.0,0.06894839]
[1773617799364,0.00035521,72538.0,72519.0,0.18550317]
[1773617801190,0.00035521,72538.0,72521.0,0.18550317]
[1773617801395,0.00035521,72538.0,72523.0,0.18550317]
[1773617802732,0.06928494,72538.0,72523.0,0.18550317]
[1773617803743,0.06928494,72538.0,72524.0,0.07034269]
[1773617804224,0.06928494,72538.0,72524.0,0.06894269]
[1773617804428,0.06928494,72538.0,72525.0,0.0014]
[1773617805001,0.06928494,72538.0,72524.0,0.06894269]
[1773617805416,0.06928494,72538.0,72524.0,0.07034269]
[1773617806062,0.25293092,72538.0,72524.0,0.06894269]
[1773617806469,0.06948494,72538.0,72524.0,0.06894269]
[1773617806700,0.18364598,72537.0,72524.0,0.06894269]
[1773617806926,0.18364598,72535.0,72524.0,0.06894269]
[1773617807342,0.18364598,72535.0,72523.0,0.0689429]
[1773617807343,0.18364598,72535.0,72518.0,0.16474348]
[1773617807541,0.18364598,72535.0,72513.0,0.20678786]
[1773617807542,0.17088535,72520.0,72506.0,1e-08]
[1773617807687,0.0014,72519.0,72502.0,0.06930872]
[1773617807900,0.0014,72519.0,72492.0,0.06903231]
[1773617807901,0.03682939,72516.0,72492.0,0.06903231]
[1773617808068,0.03682939,72516.0,72493.0,0.06907802]
[1773617810472,0.18364598,72513.0,72493.0,0.06907802]
[1773617810634,0.18364598,72511.0,72493.0,0.06907802]
[1773617811435,0.18364598,72511.0,72493.0,0.00010641]
[1773617812534,0.17539532,72509.0,72493.0,0.00010641]
[1773617813153,0.17664762,72508.0,72493.0,0.00010641]
[1773617814021,0.17664762,72507.0,72493.0,0.00010641]
[1773617814314,0.17664762,72505.0,72493.0,0.00010641]
[1773617814474,0.17664762,72503.0,72493.0,0.00010641]
[1773617814875,0.17664762,72503.0,72493.0,0.00032641]
[1773617816061,0.17664762,72503.0,72485.0,0.06924894]
[1773617816257,0.17675413,72503.0,72485.0,0.06924894]
[1773617816752,0.17664762,72501.0,72485.0,0.06919894]
[1773617817033,0.17664762,72499.0,72485.0,0.06919894]
[1773617818096,0.0014,72500.0,72485.0,0.06919894]
[1773617818502,0.0014,72500.0,72485.0,0.25469322]
[1773617818703,0.06896361,72502.0,72485.0,0.06919894]
[1773617818912,0.06907012,72503.0,72485.0,0.06919894]
[1773617818913,0.06894992,72517.0,72486.0,0.18549428]
[1773617819146,0.13641955,72518.0,72486.0,0.18560079]
[1773617819347,0.34044838,72528.0,72486.0,0.18560079]
[1773617819348,0.18236903,72521.0,72491.0,0.18549428]
[1773617819553,0.18236903,72521.0,72493.0,0.18549428]
[1773617819791,0.0014,72525.0,72493.0,0.18549428]
[1773617819961,0.0014,72526.0,72493.0,0.18549428]
[1773617820171,0.0014,72526.0,72494.0,0.0014]
[1773617820382,0.0014,72526.0,72495.0,0.18689428]
[1773617820595,0.06893414,72533.0,72498.0,0.922726]
[1773617820799,0.06893426,72533.0,72501.0,0.18549428]
[1773617821202,0.24558188,72533.0,72501.0,0.18549428]
[1773617821445,0.13638679,72532.0,72501.0,0.18549428]
[1773617821667,0.06893426,72533.0,72501.0,0.18549428]
[1773617822612,0.13658679,72534.0,72501.0,0.18549428]
[1773617822837,0.0002,72534.0,72503.0,0.18549428]
[1773617823041,0.0002,72531.0,72503.0,0.18549428]
[1773617823243,0.0002,72534.0,72503.0,0.18549428]
[1773617823919,0.0002,72534.0,72502.0,0.06896361]
[1773617823920,0.0002,72534.0,72511.0,0.32409432]
[1773617824182,0.0002,72534.0,72512.0,0.18689428]
[1773617824764,0.0002,72534.0,72513.0,0.06895315]
[1773617824998,0.0002,72534.0,72514.0,0.18549428]
[1773617825215,0.00030665,72534.0,72514.0,0.18549428]
[1773617826802,0.00030665,72534.0,72515.0,0.06895125]
[1773617827302,0.00030665,72534.0,72516.0,0.18549428]
[1773617827538,0.00145,72538.0,72516.0,0.18549428]
[1773617827776,0.00040536,72538.0,72516.0,0.18549428]
[1773617829559,0.00040536,72538.0,72517.0,0.06894934]
[1773617829764,0.06933521,72538.0,72518.0,0.18549428]
[1773617829975,0.0002,72534.0,72518.0,0.0014]
[1773617830215,0.16564762,72533.0,72518.0,0.0014]
[1773617830576,0.16564762,72533.0,72519.0,0.0014]
[1773617830787,0.16564762,72533.0,72517.0,0.07034934]
[1773617831078,0.16564762,72533.0,72517.0,0.06894934]
[1773617831223,0.16564762,72533.0,72514.0,0.00022]
[1773617831423,0.16564762,72533.0,72507.0,0.06895885]
[1773617831424,0.17664762,72529.0,72507.0,0.06895885]
[1773617832248,0.17122128,72530.0,72506.0,0.00022]
[1773617832249,0.17664762,72527.0,72506.0,0.00022]
[1773617832462,0.17664762,72527.0,72499.0,0.00022]
[1773617832463,0.17664762,72527.0,72499.0,0.06918621]
[1773617833452,0.06894079,72526.0,72499.0,0.06918621]
[1773617833611,0.17664762,72525.0,72499.0,0.06918621]
[1773617835588,0.17664762,72523.0,72499.0,0.06918621]
[1773617838037,0.17664762,72521.0,72499.0,0.06918621]
[1773617838242,0.17664762,72519.0,72499.0,0.06918621]
[1773617839065,0.0014,72520.0,72500.0,0.18549428]
[1773617839622,0.17664762,72519.0,72499.0,0.06918621]
[1773617840128,0.17664762,72517.0,72499.0,0.06918621]
[1773617840651,0.06894839,72520.0,72500.0,0.18549428]
[1773617841515,0.17664762,72519.0,72499.0,0.06918621]
[1773617841961,0.17664762,72519.0,72499.0,0.25468049]
[1773617842149,0.06894839,72518.0,72500.0,0.18133501]
[1773617843730,0.0010871,72521.0,72500.0,0.18133501]
[1773617844146,0.0689415,72526.0,72502.0,0.18133501]
[1773617844356,0.0014,72521.0,72502.0,0.18133501]
[1773617844801,0.0016,72521.0,72502.0,0.18133501]
[1773617845024,0.0002,72529.0,72502.0,0.18133501]
[1773617845228,0.06913818,72529.0,72502.0,0.18133501]
[1773617845430,0.0002,72529.0,72502.0,0.18133501]
[1773617845631,0.06913375,72534.0,72502.0,0.18133501]
[1773617845953,0.06911027,72533.0,72502.0,0.18133501]
[1773617846163,0.06911027,72533.0,72503.0,0.06896266]
[1773617846370,0.06911027,72533.0,72504.0,0.18273501]
[1773617848391,0.06911027,72533.0,72506.0,0.18133501]
[1773617849589,0.0001761,72533.0,72506.0,0.18133501]
[1773617850388,0.0001761,72533.0,72508.0,0.18133501]
[1773617852396,0.0001761,72533.0,72509.0,0.06895695]
[1773617852596,0.0001761,72533.0,72512.0,0.18133501]
[1773617852758,0.0691333,72534.0,72512.0,0.18133501]
[1773617852759,0.0655094,72534.0,72512.0,0.18133501]
[1773617852941,0.06893229,72535.0,72512.0,0.18133501]
[1773617853146,0.06913184,72536.0,72512.0,0.18133501]
[1773617854046,0.0002,72536.0,72512.0,0.18133501]
[1773617854221,0.0002,72536.0,72511.0,0.176314]
[1773617854222,0.06892292,72545.0,72521.0,0.18133501]
[1773617854459,0.06892292,72545.0,72511.0,0.06895505]
[1773617854460,0.06892558,72542.0,72511.0,0.06895505]
[1773617854686,0.18340503,72537.0,72511.0,0.06895505]
[1773617854896,0.18340503,72535.0,72507.0,0.06895879]
[1773617855069,0.18340503,72535.0,72508.0,0.0014]
[1773617855311,0.18340503,72535.0,72509.0,0.18133501]
[1773617855900,0.18340503,72535.0,72508.0,0.0014]
[1773617856491,0.18340503,72533.0,72509.0,0.06895695]
[1773617857997,0.18340503,72533.0,72509.0,0.25029196]
[1773617858193,0.18340503,72533.0,72511.0,0.31966257]
[1773617858432,0.18340503,72533.0,72512.0,0.18273501]
[1773617858593,0.06893509,72532.0,72514.0,0.18133501]
[1773617861132,0.06893509,72532.0,72515.0,0.06895125]
[1773617862603,0.06893509,72532.0,72505.0,0.10971136]
[1773617862813,0.18340503,72529.0,72506.0,0.06895981]
[1773617863016,0.18340503,72527.0,72507.0,0.0014]
[1773617863215,0.18340503,72525.0,72508.0,0.0689579]
[1773617863418,0.18340503,72525.0,72505.0,0.06896066]
[1773617863647,0.18340503,72525.0,72509.0,0.0014]
[1773617863975,0.18340503,72525.0,72505.0,0.06896066]
[1773617864194,0.18340503,72525.0,72508.0,0.0014]
[1773617864980,0.18340503,72525.0,72504.0,0.25029672]
[1773617864981,0.18340503,72525.0,72504.0,0.06896171]
[1773617865178,0.18340503,72525.0,72505.0,0.0014]
[1773617865332,0.18340503,72523.0,72506.0,0.06895981]
[1773617865739,0.18340503,72523.0,72506.0,0.25029482]
[1773617866172,0.06894269,72524.0,72506.0,0.06895981]
[1773617866373,0.06894269,72524.0,72507.0,0.18133501]
[1773617866803,0.06894269,72524.0,72507.0,0.18155501]
[1773617868273,0.06894269,72524.0,72508.0,0.0689579]
[1773617869692,0.06894269,72524.0,72472.0,0.04138807]
[1773617869693,0.18340503,72521.0,72472.0,0.04138807]
[1773617869888,0.18340503,72521.0,72462.0,0.18133501]
[1773617869889,0.17122128,72480.0,72450.0,5e-05]
[1773617870140,0.18325503,72479.0,72451.0,0.0014]
[1773617870349,0.06898645,72478.0,72454.0,0.18133501]
[1773617871220,0.18340503,72477.0,72454.0,0.1816905]
[1773617871423,0.18340503,72477.0,72454.0,0.00035549]
[1773617872005,0.18340503,72477.0,72455.0,0.0014]
[1773617872219,0.18230348,72477.0,72455.0,0.0014]
[1773617872963,0.18859319,72475.0,72456.0,0.06900739]
[1773617873167,0.06898764,72477.0,72458.0,0.18083838]
[1773617873338,0.22538802,72485.0,72458.0,0.18083838]
[1773617873339,0.06898148,72484.0,72458.0,0.18083838]
[1773617875092,0.06862741,72484.0,72459.0,0.06900454]
[1773617875292,0.06862741,72484.0,72460.0,0.18083838]
[1773617875518,0.1912097,72483.0,72459.0,0.05293154]
[1773617875694,0.1912097,72479.0,72454.0,0.06936407]
[1773617876037,0.19103263,72479.0,72455.0,0.0014]
[1773617876446,0.19103263,72479.0,72454.0,0.06936407]
[1773617876650,0.19085563,72479.0,72456.0,0.0014]
[1773617876882,0.19085563,72479.0,72457.0,0.0014]
[1773617877498,0.1912097,72477.0,72458.0,0.06900549]
[1773617877652,0.19103262,72477.0,72458.0,0.06900549]
[1773617878065,0.19085553,72477.0,72458.0,0.06900549]